[Event "Early-Titled-Tuesday-Blitz-February-06-2024"]
[Site "Chess.com"]
[Date "2024.02.06"]
[Round "5"]
[White "GMRAVEN_ON_YOUTUBE"]
[Black "NMJeevanK"]
[Result "1/2-1/2"]
[WhiteElo "2774"]
[BlackElo "2589"]
[TimeControl "180+1"]
[EndTime "8:55:53 PST"]
[Termination "Game drawn by agreement"]

1. f4 {[%clk 0:03:00.9]} 1... d5 {[%clk 0:02:57.1]} 2. Nf3 {[%clk 0:03:00.5]}
2... c5 {[%clk 0:02:56.7]} 3. e3 {[%clk 0:03:01]} 3... Nc6 {[%clk 0:02:57.3]} 4.
Bb5 {[%clk 0:03:00.8]} 4... Nf6 {[%clk 0:02:56.4]} 5. Bxc6+ {[%clk 0:03:01.2]}
5... bxc6 {[%clk 0:02:56.5]} 6. b3 {[%clk 0:03:02.1]} 6... g6 {[%clk 0:02:55.7]}
7. Bb2 {[%clk 0:03:02]} 7... Bg7 {[%clk 0:02:56.4]} 8. Ne5 {[%clk 0:03:02.5]}
8... Qc7 {[%clk 0:02:54.3]} 9. Nc3 {[%clk 0:02:59.6]} 9... O-O {[%clk
0:02:54.3]} 10. Na4 {[%clk 0:02:59.8]} 10... d4 {[%clk 0:02:25.9]} 11. O-O
{[%clk 0:02:56.5]} 11... Ba6 {[%clk 0:02:21.4]} 12. d3 {[%clk 0:02:49.7]} 12...
dxe3 {[%clk 0:02:20]} 13. Qe2 {[%clk 0:02:41]} 13... Nd5 {[%clk 0:02:13]} 14.
Nxc5 {[%clk 0:02:38.2]} 14... Bc8 {[%clk 0:02:12.3]} 15. g3 {[%clk 0:02:19.2]}
15... Bh3 {[%clk 0:02:06.4]} 16. Rfe1 {[%clk 0:02:19.2]} 16... Rad8 {[%clk
0:01:47.4]} 17. c4 {[%clk 0:02:16.5]} 17... Nb6 {[%clk 0:01:09]} 18. Qxe3 {[%clk
0:02:16.5]} 18... h5 {[%clk 0:01:00.1]} 19. d4 {[%clk 0:02:09.1]} 19... e6
{[%clk 0:00:57.7]} 20. Qf3 {[%clk 0:02:05]} 20... Bxe5 {[%clk 0:00:56.5]} 21.
fxe5 {[%clk 0:02:02.3]} 21... Bg4 {[%clk 0:00:55.8]} 22. Qf6 {[%clk 0:02:01.4]}
22... Nd7 {[%clk 0:00:51.7]} 23. Qe7 {[%clk 0:01:53.3]} 23... Rfe8 {[%clk
0:00:40.9]} 24. Qd6 {[%clk 0:01:52.1]} 24... Qc8 {[%clk 0:00:36.2]} 25. Ne4
{[%clk 0:01:49.5]} 25... Kg7 {[%clk 0:00:33.2]} 26. Qa3 {[%clk 0:01:42.2]} 26...
Bf3 {[%clk 0:00:21.1]} 27. Nd6 {[%clk 0:01:42]} 27... Qa8 {[%clk 0:00:20]} 28.
Rf1 {[%clk 0:01:42]} 28... c5 {[%clk 0:00:18.6]} 29. d5 {[%clk 0:01:41.9]} 29...
Bxd5 {[%clk 0:00:09]} 30. Rxf7+ {[%clk 0:01:40.6]} 30... Kh8 {[%clk 0:00:07.7]}
31. cxd5 {[%clk 0:01:40.3]} 31... Qxd5 {[%clk 0:00:08.6]} 32. Qxa7 {[%clk
0:01:39.1]} 32... Qd2 {[%clk 0:00:08.1]} 33. Rxd7 {[%clk 0:01:37.6]} 33... Rxd7
{[%clk 0:00:06.9]} 34. Qxd7 {[%clk 0:01:29.3]} 34... Qe3+ {[%clk 0:00:07.3]} 35.
Kf1 {[%clk 0:01:25.1]} 35... Rf8+ {[%clk 0:00:07.7]} 36. Nf7+ {[%clk 0:01:15.1]}
36... Kg7 {[%clk 0:00:08.2]} 37. Kg2 {[%clk 0:01:12.9]} 37... Rxf7 {[%clk
0:00:08.7]} 38. Qd1 {[%clk 0:01:05.5]} 38... Rf2+ {[%clk 0:00:07.5]} 39. Kh3
{[%clk 0:01:04.7]} 39... Rxb2 {[%clk 0:00:07.7]} 40. Qf1 {[%clk 0:00:43.4]}
40... Qxe5 {[%clk 0:00:06.6]} 41. Re1 {[%clk 0:00:42.6]} 41... Qf5+ {[%clk
0:00:05.6]} 42. Qxf5 {[%clk 0:00:42.8]} 42... exf5 {[%clk 0:00:06.5]} 43. Re5
{[%clk 0:00:40.2]} 43... g5 {[%clk 0:00:06.6]} 44. Rxf5 {[%clk 0:00:39.2]} 44...
Kg6 {[%clk 0:00:07]} 45. g4 {[%clk 0:00:39.6]} 45... hxg4+ {[%clk 0:00:06.9]}
46. Kxg4 {[%clk 0:00:40.1]} 46... Rg2+ {[%clk 0:00:07.4]} 47. Kf3 {[%clk
0:00:38.8]} 47... Rxh2 {[%clk 0:00:07.9]} 48. Rxc5 {[%clk 0:00:30.8]} 48... Rxa2
{[%clk 0:00:08.5]} 49. Ke4 {[%clk 0:00:29.6]} 49... Rb2 {[%clk 0:00:08.9]} 50.
Rc3 {[%clk 0:00:28.2]} 50... Kh5 {[%clk 0:00:08.5]} 51. Kf5 {[%clk 0:00:27.2]}
51... Kh4 {[%clk 0:00:08.9]} 52. Rc4+ {[%clk 0:00:27.1]} 52... Kh3 {[%clk
0:00:08.7]} 53. Kxg5 {[%clk 0:00:25.8]} 53... Rxb3 {[%clk 0:00:08.7]} 1/2-1/2

[Event "Early-Titled-Tuesday-Blitz-February-06-2024"]
[Site "Chess.com"]
[Date "2024.02.06"]
[Round "5"]
[White "Yeritsyaan"]
[Black "Atousa"]
[Result "0-1"]
[WhiteElo "2619"]
[BlackElo "2472"]
[TimeControl "180+1"]
[EndTime "8:55:53 PST"]
[Termination "Atousa won by resignation"]

1. Nf3 {[%clk 0:03:00.9]} 1... d5 {[%clk 0:02:59.6]} 2. g3 {[%clk 0:02:58.2]}
2... c6 {[%clk 0:02:59.4]} 3. Bg2 {[%clk 0:02:58.6]} 3... Nf6 {[%clk 0:02:58.3]}
4. O-O {[%clk 0:02:57.5]} 4... Bg4 {[%clk 0:02:57.7]} 5. d3 {[%clk 0:02:58.4]}
5... e6 {[%clk 0:02:57.3]} 6. c4 {[%clk 0:02:58.1]} 6... Nbd7 {[%clk 0:02:57]}
7. Nbd2 {[%clk 0:02:58]} 7... Be7 {[%clk 0:02:56.6]} 8. b3 {[%clk 0:02:58.1]}
8... O-O {[%clk 0:02:56.4]} 9. Bb2 {[%clk 0:02:58.8]} 9... a5 {[%clk 0:02:56]}
10. a3 {[%clk 0:02:59.1]} 10... h6 {[%clk 0:02:36.9]} 11. Qc2 {[%clk 0:02:58.3]}
11... Rc8 {[%clk 0:02:34]} 12. Rac1 {[%clk 0:02:56.3]} 12... Re8 {[%clk
0:02:31.9]} 13. Qb1 {[%clk 0:02:56.5]} 13... Nh7 {[%clk 0:02:26.3]} 14. e4
{[%clk 0:02:54.4]} 14... Bf6 {[%clk 0:02:20.2]} 15. e5 {[%clk 0:02:48.7]} 15...
Be7 {[%clk 0:02:17.2]} 16. Rfe1 {[%clk 0:02:48.8]} 16... Nc5 {[%clk 0:01:59.8]}
17. d4 {[%clk 0:02:43.4]} 17... Bf5 {[%clk 0:01:58.5]} 18. Qa2 {[%clk
0:02:32.9]} 18... Nd3 {[%clk 0:01:58.7]} 19. Red1 {[%clk 0:02:17.5]} 19... Nxc1
{[%clk 0:01:57.1]} 20. Rxc1 {[%clk 0:02:18]} 20... Ng5 {[%clk 0:01:55.4]} 21.
Bc3 {[%clk 0:02:04]} 21... Ne4 {[%clk 0:01:49.4]} 22. Nxe4 {[%clk 0:01:46.1]}
22... Bxe4 {[%clk 0:01:49.1]} 23. c5 {[%clk 0:01:43.7]} 23... b6 {[%clk
0:01:41.2]} 24. Qd2 {[%clk 0:01:38.6]} 24... Bxf3 {[%clk 0:01:31.5]} 25. Bxf3
{[%clk 0:01:38.6]} 25... Bg5 {[%clk 0:01:31.8]} 26. Qd1 {[%clk 0:01:36.3]} 26...
Bxc1 {[%clk 0:01:32.5]} 27. Qxc1 {[%clk 0:01:37.2]} 27... bxc5 {[%clk
0:01:30.2]} 28. dxc5 {[%clk 0:01:30.7]} 28... d4 {[%clk 0:01:30.7]} 29. Bd2
{[%clk 0:01:29.5]} 29... Re7 {[%clk 0:01:11.9]} 30. Qc4 {[%clk 0:01:27.9]} 30...
Rb7 {[%clk 0:01:07.2]} 31. Be4 {[%clk 0:01:19.1]} 31... Qc7 {[%clk 0:00:56.3]}
32. f4 {[%clk 0:01:15.3]} 32... Rcb8 {[%clk 0:00:53.9]} 33. Bc2 {[%clk
0:01:14.1]} 33... Qd7 {[%clk 0:00:45]} 34. Bxa5 {[%clk 0:01:04.8]} 34... d3
{[%clk 0:00:44.6]} 35. Bd1 {[%clk 0:01:03.5]} 35... d2 {[%clk 0:00:40.8]} 36.
Kf2 {[%clk 0:00:51.2]} 36... Rxb3 {[%clk 0:00:36.1]} 37. Bb4 {[%clk 0:00:37.6]}
37... Rb1 {[%clk 0:00:35.9]} 38. Ke2 {[%clk 0:00:38.2]} 38... Qd5 {[%clk
0:00:31]} 39. Qxd5 {[%clk 0:00:34.8]} 39... exd5 {[%clk 0:00:31.8]} 40. Kxd2
{[%clk 0:00:27.8]} 40... R1xb4 {[%clk 0:00:31.3]} 41. axb4 {[%clk 0:00:28.7]}
41... Rxb4 {[%clk 0:00:31.5]} 42. Kd3 {[%clk 0:00:27.6]} 42... Rc4 {[%clk
0:00:31.5]} 43. Bb3 {[%clk 0:00:23.5]} 43... Rxc5 {[%clk 0:00:31.9]} 44. Kd4
{[%clk 0:00:24.2]} 44... Rc1 {[%clk 0:00:31.5]} 45. f5 {[%clk 0:00:20.2]} 45...
Kf8 {[%clk 0:00:31.8]} 46. g4 {[%clk 0:00:15.8]} 46... Ke7 {[%clk 0:00:31.5]}
47. h4 {[%clk 0:00:15.5]} 47... Rh1 {[%clk 0:00:29.1]} 48. Kc5 {[%clk
0:00:12.9]} 48... Rxh4 {[%clk 0:00:28.6]} 49. Bd1 {[%clk 0:00:12.8]} 49... Rh1
{[%clk 0:00:27.9]} 50. Bf3 {[%clk 0:00:11.8]} 50... Rc1+ {[%clk 0:00:27.8]} 51.
Kd4 {[%clk 0:00:10.7]} 51... Rc4+ {[%clk 0:00:27.9]} 52. Kd3 {[%clk 0:00:10.8]}
52... c5 {[%clk 0:00:26.8]} 53. Bg2 {[%clk 0:00:07.5]} 53... Rxg4 {[%clk
0:00:25.3]} 54. Bf3 {[%clk 0:00:07.4]} 54... Rf4 {[%clk 0:00:24.8]} 0-1

[Event "Early-Titled-Tuesday-Blitz-February-06-2024"]
[Site "Chess.com"]
[Date "2024.02.06"]
[Round "5"]
[White "lucliasco"]
[Black "vi_pranav"]
[Result "0-1"]
[WhiteElo "2869"]
[BlackElo "3052"]
[TimeControl "180+1"]
[EndTime "8:55:54 PST"]
[Termination "vi_pranav won by resignation"]

1. e4 {[%clk 0:03:00.9]} 1... e5 {[%clk 0:03:00]} 2. Nf3 {[%clk 0:03:00.7]} 2...
Nc6 {[%clk 0:03:00.7]} 3. d4 {[%clk 0:02:59.4]} 3... exd4 {[%clk 0:03:00.8]} 4.
Bc4 {[%clk 0:02:58.5]} 4... Nf6 {[%clk 0:03:00.9]} 5. O-O {[%clk 0:02:58.9]}
5... Nxe4 {[%clk 0:03:00.4]} 6. Re1 {[%clk 0:02:59.6]} 6... d5 {[%clk
0:03:00.8]} 7. Bxd5 {[%clk 0:02:59.6]} 7... Qxd5 {[%clk 0:03:01.7]} 8. Nc3
{[%clk 0:02:59.3]} 8... Qa5 {[%clk 0:03:02.1]} 9. Nxe4 {[%clk 0:02:57.3]} 9...
Be6 {[%clk 0:03:02]} 10. Neg5 {[%clk 0:02:55.6]} 10... O-O-O {[%clk 0:03:01.4]}
11. Nxe6 {[%clk 0:02:53.3]} 11... fxe6 {[%clk 0:03:02.3]} 12. Rxe6 {[%clk
0:02:54]} 12... Qd5 {[%clk 0:03:02.3]} 13. Qe2 {[%clk 0:02:49.6]} 13... Bd6
{[%clk 0:02:56.6]} 14. Bg5 {[%clk 0:02:48.9]} 14... Rdf8 {[%clk 0:02:51.1]} 15.
Bh4 {[%clk 0:02:45.4]} 15... b6 {[%clk 0:02:04.8]} 16. Bg3 {[%clk 0:02:38.7]}
16... Bxg3 {[%clk 0:02:03.4]} 17. hxg3 {[%clk 0:02:37.9]} 17... Kb7 {[%clk
0:01:54.5]} 18. Re1 {[%clk 0:02:31.1]} 18... Rd8 {[%clk 0:01:49.1]} 19. a3
{[%clk 0:02:28.6]} 19... Rhf8 {[%clk 0:01:41.9]} 20. Re4 {[%clk 0:02:15.2]}
20... d3 {[%clk 0:01:39.2]} 21. cxd3 {[%clk 0:02:14.9]} 21... Qxd3 {[%clk
0:01:40.1]} 22. Ng5 {[%clk 0:02:15.5]} 22... Qxe2 {[%clk 0:01:30.9]} 23. R4xe2
{[%clk 0:02:12.2]} 23... Rf5 {[%clk 0:01:30.5]} 24. Ne6 {[%clk 0:02:07.4]} 24...
Rd7 {[%clk 0:01:30.7]} 25. f4 {[%clk 0:02:04]} 25... h6 {[%clk 0:01:23.2]} 26.
b4 {[%clk 0:01:57.5]} 26... a5 {[%clk 0:01:22.6]} 27. bxa5 {[%clk 0:01:48.4]}
27... Rxa5 {[%clk 0:01:23.5]} 28. g4 {[%clk 0:01:49.3]} 28... Rxa3 {[%clk
0:01:21]} 29. Rb1 {[%clk 0:01:46.6]} 29... Rc3 {[%clk 0:00:56.3]} 30. Ra2 {[%clk
0:01:42.3]} 30... Nd4 {[%clk 0:00:53.7]} 31. Nf8 {[%clk 0:01:42.1]} 31... Re7
{[%clk 0:00:39.5]} 32. Ng6 {[%clk 0:01:41.9]} 32... Re4 {[%clk 0:00:32.2]} 33.
Rba1 {[%clk 0:01:37.2]} 33... Ne2+ {[%clk 0:00:30.1]} 34. Kh2 {[%clk 0:01:34.3]}
34... Nxf4 {[%clk 0:00:30.4]} 35. Nf8 {[%clk 0:01:32.1]} 35... Re8 {[%clk
0:00:24.4]} 36. Nd7 {[%clk 0:01:30]} 36... Kc6 {[%clk 0:00:22.5]} 37. Rf1 {[%clk
0:01:29.5]} 37... Kxd7 {[%clk 0:00:12.9]} 38. Rxf4 {[%clk 0:01:29.2]} 38... Re7
{[%clk 0:00:13.5]} 39. Rf5 {[%clk 0:01:27.5]} 39... Rce3 {[%clk 0:00:12.6]} 40.
Rd2+ {[%clk 0:01:25.8]} 40... Kc6 {[%clk 0:00:12.8]} 41. Rc2+ {[%clk 0:01:23.9]}
41... Kb7 {[%clk 0:00:13]} 42. Rff2 {[%clk 0:01:19.4]} 42... R3e5 {[%clk
0:00:10.7]} 43. Kh3 {[%clk 0:01:19.2]} 43... b5 {[%clk 0:00:11.2]} 44. g3 {[%clk
0:01:18.3]} 44... Kb6 {[%clk 0:00:11]} 45. Rf8 {[%clk 0:01:18.3]} 45... c6
{[%clk 0:00:09.7]} 46. Rb8+ {[%clk 0:01:18.2]} 46... Rb7 {[%clk 0:00:09.8]} 47.
Rc8 {[%clk 0:01:17.7]} 47... c5 {[%clk 0:00:09.8]} 48. Kg2 {[%clk 0:01:15.6]}
48... b4 {[%clk 0:00:10]} 49. Kf3 {[%clk 0:01:16.1]} 49... Kb5 {[%clk
0:00:09.3]} 50. Kf4 {[%clk 0:01:16.5]} 50... Rg5 {[%clk 0:00:09.4]} 51. Rc1
{[%clk 0:01:12.4]} 51... b3 {[%clk 0:00:08.8]} 52. Ke4 {[%clk 0:01:13]} 52...
Kb4 {[%clk 0:00:09.2]} 53. Kd3 {[%clk 0:01:12.3]} 53... Rd5+ {[%clk 0:00:07.7]}
54. Ke2 {[%clk 0:01:11.8]} 54... b2 {[%clk 0:00:06.8]} 55. Rb1 {[%clk
0:01:11.9]} 55... Kb3 {[%clk 0:00:06.8]} 56. Ke3 {[%clk 0:01:10.5]} 56... c4
{[%clk 0:00:06.9]} 57. Ke4 {[%clk 0:01:10.4]} 57... Rdd7 {[%clk 0:00:04.6]} 58.
Rf8 {[%clk 0:01:09.6]} 58... c3 {[%clk 0:00:04.7]} 59. Rf2 {[%clk 0:01:10.5]}
59... Rf7 {[%clk 0:00:03.9]} 60. Rh2 {[%clk 0:01:09.9]} 60... Rbe7+ {[%clk
0:00:04.5]} 61. Kd5 {[%clk 0:01:10.2]} 61... Rd7+ {[%clk 0:00:05.4]} 62. Ke6
{[%clk 0:01:10.3]} 62... c2 {[%clk 0:00:06.3]} 0-1

[Event "Early-Titled-Tuesday-Blitz-February-06-2024"]
[Site "Chess.com"]
[Date "2024.02.06"]
[Round "5"]
[White "PavelShkapenko"]
[Black "Philippians46"]
[Result "0-1"]
[WhiteElo "2762"]
[BlackElo "2597"]
[TimeControl "180+1"]
[EndTime "8:55:55 PST"]
[Termination "Philippians46 won by resignation"]

1. e4 {[%clk 0:02:50.3]} 1... c5 {[%clk 0:02:59.8]} 2. c3 {[%clk 0:02:50]} 2...
d5 {[%clk 0:03:00.1]} 3. exd5 {[%clk 0:02:49.9]} 3... Qxd5 {[%clk 0:02:59.8]} 4.
d4 {[%clk 0:02:50.8]} 4... Nc6 {[%clk 0:03:00.1]} 5. Nf3 {[%clk 0:02:50.5]} 5...
Bf5 {[%clk 0:03:00.7]} 6. Be3 {[%clk 0:02:49.8]} 6... Nf6 {[%clk 0:02:57.5]} 7.
Na3 {[%clk 0:02:48.4]} 7... cxd4 {[%clk 0:02:33]} 8. Bc4 {[%clk 0:02:46.6]} 8...
Qa5 {[%clk 0:02:28.6]} 9. Nxd4 {[%clk 0:02:45]} 9... e6 {[%clk 0:02:18]} 10.
Nab5 {[%clk 0:02:32.2]} 10... Be4 {[%clk 0:02:16.4]} 11. Nxc6 {[%clk 0:02:19.3]}
11... Bxc6 {[%clk 0:02:13.2]} 12. Nd6+ {[%clk 0:02:19.8]} 12... Bxd6 {[%clk
0:02:13.2]} 13. Qxd6 {[%clk 0:02:20.7]} 13... Rd8 {[%clk 0:02:13.8]} 14. Qc5
{[%clk 0:02:14.1]} 14... Qxc5 {[%clk 0:01:50.4]} 15. Bxc5 {[%clk 0:02:15]} 15...
Bxg2 {[%clk 0:01:50.1]} 16. Rg1 {[%clk 0:02:13.5]} 16... Rc8 {[%clk 0:01:45.7]}
17. b4 {[%clk 0:02:02.1]} 17... Bd5 {[%clk 0:01:20.4]} 18. Bb5+ {[%clk
0:01:51.6]} 18... Bc6 {[%clk 0:01:19.3]} 19. Bxc6+ {[%clk 0:01:49.8]} 19... Rxc6
{[%clk 0:01:20.2]} 20. Rxg7 {[%clk 0:01:49.4]} 20... b6 {[%clk 0:01:14.8]} 21.
Bd4 {[%clk 0:01:47.6]} 21... e5 {[%clk 0:01:15.1]} 22. Bxe5 {[%clk 0:01:37.3]}
22... Re6 {[%clk 0:01:14.3]} 23. f4 {[%clk 0:01:37.9]} 23... Nh5 {[%clk
0:01:10.5]} 24. Rg5 {[%clk 0:01:28.5]} 24... Nxf4 {[%clk 0:01:09.7]} 25. O-O-O
{[%clk 0:01:24.5]} 25... f6 {[%clk 0:01:08]} 26. Bc7 {[%clk 0:00:49.7]} 26...
fxg5 {[%clk 0:00:46.5]} 27. Rd8+ {[%clk 0:00:49.1]} 27... Kf7 {[%clk 0:00:46.9]}
28. Rxh8 {[%clk 0:00:49.9]} 28... Rh6 {[%clk 0:00:44.5]} 29. Ra8 {[%clk
0:00:47.1]} 29... Rxh2 {[%clk 0:00:42.3]} 30. Rxa7 {[%clk 0:00:47.4]} 30... Ke6
{[%clk 0:00:31.8]} 31. Bxb6 {[%clk 0:00:42.5]} 31... Ne2+ {[%clk 0:00:27.4]} 32.
Kd2 {[%clk 0:00:41]} 32... g4 {[%clk 0:00:21.1]} 33. Rg7 {[%clk 0:00:37.7]}
33... h5 {[%clk 0:00:17.4]} 34. Bc7 {[%clk 0:00:36.6]} 34... g3 {[%clk
0:00:15.7]} 35. Kd3 {[%clk 0:00:35.9]} 35... h4 {[%clk 0:00:15.4]} 36. b5 {[%clk
0:00:35.8]} 36... Nc1+ {[%clk 0:00:15.6]} 37. Kc4 {[%clk 0:00:35.5]} 37... Rxa2
{[%clk 0:00:13.8]} 38. b6 {[%clk 0:00:35.4]} 38... Rb2 {[%clk 0:00:13.9]} 39.
Kc5 {[%clk 0:00:34]} 39... Nd3+ {[%clk 0:00:10.3]} 40. Kc6 {[%clk 0:00:33.6]}
40... Ne5+ {[%clk 0:00:10.7]} 41. Bxe5 {[%clk 0:00:20.8]} 41... Kxe5 {[%clk
0:00:11.6]} 42. Rg4 {[%clk 0:00:21]} 42... Kf5 {[%clk 0:00:09.3]} 43. Rxh4
{[%clk 0:00:16.9]} 43... g2 {[%clk 0:00:09.1]} 44. Rh2 {[%clk 0:00:17.5]} 44...
Rxb6+ {[%clk 0:00:08.1]} 45. Kc7 {[%clk 0:00:14.1]} 45... g1=Q {[%clk 0:00:09]}
46. Rh5+ {[%clk 0:00:13.1]} 46... Kg6 {[%clk 0:00:08.5]} 47. Rd5 {[%clk
0:00:12.4]} 47... Rf6 {[%clk 0:00:08.7]} 48. c4 {[%clk 0:00:11.7]} 48... Qb6+
{[%clk 0:00:08.8]} 49. Kd7 {[%clk 0:00:11.5]} 49... Rf7+ {[%clk 0:00:09.2]} 0-1

[Event "Early-Titled-Tuesday-Blitz-February-06-2024"]
[Site "Chess.com"]
[Date "2024.02.06"]
[Round "5"]
[White "Lady_Nika"]
[Black "Juicy_Fork"]
[Result "0-1"]
[WhiteElo "2580"]
[BlackElo "2447"]
[TimeControl "180+1"]
[EndTime "8:55:56 PST"]
[Termination "Juicy_Fork won by resignation"]

1. d4 {[%clk 0:03:00.9]} 1... Nf6 {[%clk 0:03:00]} 2. e3 {[%clk 0:03:01.1]} 2...
g6 {[%clk 0:02:59.8]} 3. c4 {[%clk 0:03:01.1]} 3... Bg7 {[%clk 0:03:00.1]} 4.
Nc3 {[%clk 0:03:01.4]} 4... d6 {[%clk 0:02:59.3]} 5. Nf3 {[%clk 0:02:59.3]} 5...
O-O {[%clk 0:02:58.9]} 6. Bd3 {[%clk 0:02:58.5]} 6... c5 {[%clk 0:02:57.9]} 7.
d5 {[%clk 0:02:57.5]} 7... e6 {[%clk 0:02:55.5]} 8. dxe6 {[%clk 0:02:55]} 8...
Bxe6 {[%clk 0:02:54.3]} 9. O-O {[%clk 0:02:55.1]} 9... Nc6 {[%clk 0:02:52.1]}
10. a3 {[%clk 0:02:54.2]} 10... Re8 {[%clk 0:02:47]} 11. Qc2 {[%clk 0:02:52.7]}
11... Rc8 {[%clk 0:02:33.1]} 12. Rd1 {[%clk 0:02:51.3]} 12... d5 {[%clk
0:02:28.9]} 13. cxd5 {[%clk 0:02:49.1]} 13... Nxd5 {[%clk 0:02:27.1]} 14. Nxd5
{[%clk 0:02:46.8]} 14... Bxd5 {[%clk 0:02:20.2]} 15. Bc4 {[%clk 0:02:42.3]}
15... Be4 {[%clk 0:02:03.6]} 16. Qb3 {[%clk 0:02:40]} 16... Qe7 {[%clk
0:02:00.2]} 17. Bd2 {[%clk 0:02:20.6]} 17... Bxf3 {[%clk 0:01:54.5]} 18. gxf3
{[%clk 0:02:20]} 18... Ne5 {[%clk 0:01:54.6]} 19. Be2 {[%clk 0:02:17.3]} 19...
Qg5+ {[%clk 0:01:53.6]} 20. Kh1 {[%clk 0:02:15]} 20... Qh5 {[%clk 0:01:53.1]}
21. e4 {[%clk 0:02:11.5]} 21... c4 {[%clk 0:01:46.1]} 22. Qe3 {[%clk 0:02:09.2]}
22... Nd3 {[%clk 0:01:39.9]} 23. Bc3 {[%clk 0:01:58.4]} 23... Bh6 {[%clk
0:01:16.1]} 24. Qd4 {[%clk 0:01:53.8]} 24... Ne5 {[%clk 0:01:06.9]} 25. Kg2
{[%clk 0:01:30]} 25... Bf4 {[%clk 0:01:04.5]} 26. h3 {[%clk 0:01:05.8]} 26...
Qg5+ {[%clk 0:01:01.4]} 27. Kf1 {[%clk 0:01:05.7]} 27... Qh4 {[%clk 0:00:58.4]}
28. Kg2 {[%clk 0:01:05.6]} 28... b6 {[%clk 0:00:50.9]} 29. Qd5 {[%clk
0:00:33.2]} 29... Rcd8 {[%clk 0:00:30.9]} 30. Qb5 {[%clk 0:00:32.5]} 30... Qg5+
{[%clk 0:00:23.5]} 31. Kh1 {[%clk 0:00:29.6]} 31... Qh4 {[%clk 0:00:07.8]} 32.
Kg2 {[%clk 0:00:27.4]} 32... Rc8 {[%clk 0:00:08.3]} 33. Rd5 {[%clk 0:00:20.6]}
33... Re6 {[%clk 0:00:05.7]} 34. Bxe5 {[%clk 0:00:18.3]} 34... Qg5+ {[%clk
0:00:05.9]} 35. Kh1 {[%clk 0:00:18.3]} 35... Rxe5 {[%clk 0:00:06]} 36. Rg1
{[%clk 0:00:17.4]} 36... Qh5 {[%clk 0:00:05.5]} 37. Kg2 {[%clk 0:00:16.9]} 37...
Rc5 {[%clk 0:00:02.9]} 38. Rxe5 {[%clk 0:00:15.2]} 38... Rxe5 {[%clk 0:00:03]}
39. Qxc4 {[%clk 0:00:14.5]} 39... Rg5+ {[%clk 0:00:03.3]} 40. Kf1 {[%clk
0:00:14.3]} 40... Qxh3+ {[%clk 0:00:04.2]} 41. Ke1 {[%clk 0:00:14.1]} 41...
Rxg1+ {[%clk 0:00:05.1]} 42. Bf1 {[%clk 0:00:13.7]} 42... Qxf1+ {[%clk
0:00:04.3]} 0-1

[Event "Early-Titled-Tuesday-Blitz-February-06-2024"]
[Site "Chess.com"]
[Date "2024.02.06"]
[Round "5"]
[White "Blitzking642"]
[Black "ashookk"]
[Result "1-0"]
[WhiteElo "2538"]
[BlackElo "2312"]
[TimeControl "180+1"]
[EndTime "8:55:57 PST"]
[Termination "Blitzking642 won by resignation"]

1. d4 {[%clk 0:03:00.9]} 1... Nf6 {[%clk 0:02:59.2]} 2. c4 {[%clk 0:03:01]} 2...
c5 {[%clk 0:02:59.8]} 3. d5 {[%clk 0:03:00.9]} 3... b5 {[%clk 0:03:00.4]} 4.
cxb5 {[%clk 0:03:01.4]} 4... a6 {[%clk 0:03:01.1]} 5. b6 {[%clk 0:03:02.1]} 5...
g6 {[%clk 0:03:00.5]} 6. Nc3 {[%clk 0:03:01.4]} 6... d6 {[%clk 0:02:59.8]} 7. e4
{[%clk 0:02:59]} 7... Bg7 {[%clk 0:03:00.2]} 8. Nf3 {[%clk 0:02:58.8]} 8... O-O
{[%clk 0:03:00.7]} 9. Nd2 {[%clk 0:02:59.3]} 9... Nfd7 {[%clk 0:02:59.2]} 10. a4
{[%clk 0:02:56.5]} 10... a5 {[%clk 0:02:59.5]} 11. Bb5 {[%clk 0:02:55.5]} 11...
Ba6 {[%clk 0:02:59.1]} 12. O-O {[%clk 0:02:53.7]} 12... Nxb6 {[%clk 0:02:59.4]}
13. Qe2 {[%clk 0:02:47]} 13... Bxb5 {[%clk 0:02:58.9]} 14. axb5 {[%clk
0:02:46.6]} 14... N8d7 {[%clk 0:02:55.2]} 15. f4 {[%clk 0:02:37.1]} 15... Qc7
{[%clk 0:02:53]} 16. Nf3 {[%clk 0:02:35.1]} 16... c4 {[%clk 0:02:45.4]} 17. Be3
{[%clk 0:02:29.7]} 17... Nc5 {[%clk 0:02:44.9]} 18. Nd4 {[%clk 0:02:07.9]} 18...
Bxd4 {[%clk 0:02:26.5]} 19. Bxd4 {[%clk 0:02:07.5]} 19... Nb3 {[%clk 0:02:27.4]}
20. Rad1 {[%clk 0:01:59.4]} 20... Nxd4 {[%clk 0:02:27.6]} 21. Rxd4 {[%clk
0:02:00.3]} 21... Qc5 {[%clk 0:02:28.1]} 22. Qf2 {[%clk 0:01:57.6]} 22... a4
{[%clk 0:02:27.6]} 23. e5 {[%clk 0:01:34.6]} 23... a3 {[%clk 0:02:26.2]} 24.
bxa3 {[%clk 0:01:30.3]} 24... Rxa3 {[%clk 0:02:27.1]} 25. Ne4 {[%clk 0:01:29.1]}
25... Qc7 {[%clk 0:01:28.9]} 26. exd6 {[%clk 0:01:24.9]} 26... exd6 {[%clk
0:01:27.1]} 27. f5 {[%clk 0:01:22.9]} 27... Nd7 {[%clk 0:01:13.8]} 28. Kh1
{[%clk 0:00:52.7]} 28... Qb6 {[%clk 0:01:11.6]} 29. f6 {[%clk 0:00:45.8]} 29...
Rd3 {[%clk 0:01:06.2]} 30. Rxc4 {[%clk 0:00:21.6]} 30... Qxf2 {[%clk 0:01:01.4]}
31. Nxf2 {[%clk 0:00:20.5]} 31... Rxd5 {[%clk 0:01:01.7]} 32. Rb4 {[%clk
0:00:19.3]} 32... Nxf6 {[%clk 0:01:00.3]} 33. b6 {[%clk 0:00:18.2]} 33... Rb8
{[%clk 0:00:59.5]} 34. b7 {[%clk 0:00:17]} 34... Rc5 {[%clk 0:00:50.9]} 35. Nd3
{[%clk 0:00:16.7]} 35... Rc7 {[%clk 0:00:50.8]} 36. Rxf6 {[%clk 0:00:16.4]}
36... Rcxb7 {[%clk 0:00:49.1]} 37. Rxb7 {[%clk 0:00:16.4]} 37... Rxb7 {[%clk
0:00:50]} 38. h3 {[%clk 0:00:16.7]} 38... Rb6 {[%clk 0:00:46.1]} 39. Kh2 {[%clk
0:00:12.1]} 39... Kg7 {[%clk 0:00:47]} 40. Rf4 {[%clk 0:00:12.2]} 40... h5
{[%clk 0:00:47.3]} 41. Kg3 {[%clk 0:00:10.7]} 41... Rb3 {[%clk 0:00:46.8]} 42.
Rd4 {[%clk 0:00:10.9]} 42... g5 {[%clk 0:00:41]} 43. Rxd6 {[%clk 0:00:09.5]}
43... f5 {[%clk 0:00:41.7]} 44. Kf2 {[%clk 0:00:09.3]} 44... h4 {[%clk
0:00:40.7]} 45. Ne5 {[%clk 0:00:08.2]} 45... Rb5 {[%clk 0:00:37.3]} 46. Nf3
{[%clk 0:00:07.8]} 46... g4 {[%clk 0:00:35.8]} 47. Nxh4 {[%clk 0:00:07.7]} 47...
gxh3 {[%clk 0:00:36.3]} 48. gxh3 {[%clk 0:00:08.1]} 48... Kf7 {[%clk 0:00:33.2]}
49. Kg3 {[%clk 0:00:07.2]} 49... Ke7 {[%clk 0:00:32.1]} 50. Rh6 {[%clk
0:00:06.1]} 50... Rb3+ {[%clk 0:00:28.8]} 51. Kf4 {[%clk 0:00:06.1]} 1-0